bitfinex/quotes_SOLUSD_20250421
["timestamp","ask_amount","ask_price","bid_price","bid_amount"]
[1745261547120,30.5359832,135.15,135.12,81.8]
[1745261547623,40.71391073,135.13,135.1,0.063]
[1745261547822,26.0,135.13,135.1,0.063]
[1745261548599,14.71391073,135.12,135.1,0.063]
[1745261548805,26.0,135.15,135.11,14.71391073]
[1745261549125,40.71391073,135.15,135.11,14.71391073]
[1745261549301,26.0,135.15,135.12,14.71391073]
[1745261550725,40.71391073,135.15,135.11,22.11495912]
[1745261554332,26.0,135.15,135.11,22.11495912]
[1745261554534,23.55778476,135.18,135.14,14.71391073]
[1745261554823,48.11111555,135.19,135.15,14.71391073]
[1745261555032,48.11111555,135.19,135.14,81.8]
[1745261555326,48.11111555,135.19,135.14,96.51391073]
[1745261555999,14.71391073,135.18,135.15,7.39918608]
[1745261556197,48.11111555,135.19,135.15,7.39918608]
[1745261556726,40.71391073,135.19,135.15,22.11309681]
[1745261556922,26.0,135.19,135.15,22.11309681]
[1745261557228,22.14059153,135.2,135.15,22.11309681]
[1745261558325,14.71391073,135.19,135.15,22.11309681]
[1745261559328,14.71391073,135.18,135.14,103.91339151]
[1745261559930,48.11110608,135.19,135.14,103.91339151]
[1745261560630,40.71391073,135.19,135.14,103.91339151]
[1745261560802,40.71391073,135.19,135.15,14.71391073]
[1745261563029,48.1109686,135.19,135.14,89.19948078]
[1745261563229,48.1109686,135.19,135.15,14.71391073]
[1745261564035,48.1109686,135.19,135.15,22.11304713]
[1745261564529,33.39705787,135.19,135.15,22.11304713]
[1745261566011,26.0,135.19,135.15,22.11304713]
[1745261566337,26.0,135.19,135.16,14.71391073]
[1745261567725,26.0,135.19,135.16,22.11220512]
[1745261568062,26.0,135.19,135.15,7.39894924]
[1745261568344,26.0,135.19,135.15,22.11285997]
[1745261570704,26.0,135.19,135.16,14.71391073]
[1745261571235,26.0,135.19,135.16,22.11234664]
[1745261571934,0.03,135.2,135.18,14.71391073]
[1745261572315,0.03,135.2,135.17,14.71391073]
[1745261573241,0.03,135.2,135.17,22.1117335]
[1745261573845,14.74391073,135.2,135.16,89.19841444]
[1745261574150,14.71391073,135.18,135.16,81.8]
[1745261574352,14.71391073,135.19,135.16,81.8]
[1745261574529,0.03,135.2,135.16,81.8]
[1745261574735,14.71391073,135.19,135.16,81.8]
[1745261575349,7.4264497,135.2,135.16,81.8]
[1745261575538,14.71391073,135.19,135.16,81.8]
[1745261576542,22.11094656,135.19,135.16,81.8]
[1745261582561,22.11094656,135.19,135.15,14.71391073]
[1745261583359,22.11094656,135.19,135.15,22.1129768]
[1745261584186,14.71391073,135.19,135.15,22.1129768]
[1745261584365,22.1404687,135.2,135.16,14.71391073]
[1745261584569,42.1404687,135.2,135.16,22.1125088]
[1745261585764,0.03,135.2,135.17,14.71391073]
[1745261585934,0.03,135.2,135.18,14.71391073]
[1745261586137,0.03,135.2,135.19,14.71391073]
[1745261586333,0.03,135.2,135.18,14.71391073]
[1745261586555,0.03,135.2,135.17,14.71391073]
[1745261587738,0.03,135.2,135.18,22.11145474]
[1745261588774,0.03,135.2,135.19,14.71391073]
[1745261589342,0.03,135.2,135.18,7.39754401]
[1745261592168,0.03,135.2,135.17,22.11178434]
[1745261597093,0.03,135.2,135.18,22.11130359]
[1745261599376,0.03,135.2,135.19,14.71391073]
[1745261601280,0.03,135.2,135.19,22.11090754]
[1745261601720,1e-08,135.2,135.19,122.5605564]
[1745261601982,0.03,135.21,135.19,122.5605564]
[1745261602185,0.03,135.21,135.2,14.71391073]
[1745261603475,0.03,135.21,135.2,22.11036043]
[1745261604306,0.03,135.21,135.2,7.3964497]
[1745261606507,0.03,135.21,135.2,22.11036043]
[1745261613007,0.03,135.21,135.2,103.91036043]
[1745261613205,0.03,135.22,135.21,14.71391073]
[1745261613502,0.03,135.22,135.21,96.51391073]
[1745261614711,0.03,135.22,135.21,103.90981339]
[1745261615004,1e-08,135.22,135.21,103.90981339]
[1745261618811,1e-08,135.22,135.21,89.19590266]
[1745261619106,1e-08,135.22,135.21,103.90981339]
[1745261641931,0.03,135.26,135.25,18.79181043]
[1745261642222,0.03,135.28,135.26,14.71391073]
[1745261643722,0.03,135.28,135.26,22.10707944]
[1745261645515,0.03,135.28,135.26,103.87707944]
[1745261650736,0.03,135.28,135.26,81.77]
[1745261651021,14.74391073,135.27,135.23,7.39453411]
[1745261651829,14.71391073,135.26,135.23,7.39453411]
[1745261652430,14.71391073,135.25,135.22,81.77]
[1745261655211,14.71391073,135.25,135.22,89.16526596]
[1745261655413,14.71391073,135.26,135.22,103.87917669]
[1745261655617,14.74391073,135.27,135.23,14.71391073]
[1745261655915,14.74391073,135.27,135.22,103.87917669]
[1745261657424,0.03,135.27,135.24,14.71391073]
[1745261658233,0.03,135.27,135.22,89.16526596]
[1745261658234,0.03,135.27,135.23,14.71391073]
[1745261659248,0.03,135.27,135.24,7.39426205]
[1745261660450,14.74391073,135.27,135.24,7.39426205]
[1745261660655,14.74391073,135.27,135.23,7.39455564]
[1745261661128,14.71391073,135.26,135.22,103.87906913]
[1745261661329,22.13672609,135.27,135.22,103.87906913]
[1745261664941,14.74391073,135.27,135.22,103.87906913]
[1745261665529,14.74391073,135.27,135.23,14.71391073]
[1745261665748,0.03,135.27,135.23,14.71391073]
[1745261666562,0.03,135.27,135.26,14.71391073]
[1745261666738,0.03,135.27,135.26,22.10707944]
[1745261667547,0.03,135.27,135.26,7.39316871]
[1745261667752,0.03,135.27,135.26,22.10707944]
[1745261668058,0.03,135.27,135.25,7.39345958]
[1745261668248,0.03,135.27,135.26,14.71391073]
[1745261669439,0.03,135.27,135.26,96.48391073]
[1745261669641,1e-08,135.27,135.26,96.48391073]
[1745261669837,1e-08,135.27,135.26,103.87707944]
[1745261673559,0.03,135.28,135.26,103.87707944]
[1745261673560,14.74391073,135.28,135.26,81.77]
[1745261673735,14.71391073,135.28,135.25,7.3935302]
[1745261674259,14.71391073,135.28,135.25,7.39371268]
[1745261675564,0.03,135.29,135.25,22.10762341]
[1745261675865,0.03,135.29,135.26,14.71391073]
[1745261676674,0.03,135.29,135.25,22.10762341]
[1745261676868,14.74391073,135.29,135.25,22.10762341]
[1745261677765,14.74391073,135.29,135.25,103.87762341]
[1745261677977,0.03,135.29,135.25,103.87762341]
[1745261680469,14.74391073,135.29,135.25,103.87762341]
[1745261687949,14.74391073,135.29,135.25,89.16371268]
[1745261688155,14.74391073,135.29,135.25,103.87762341]
[1745261693175,14.71391073,135.26,135.23,7.39455286]
[1745261694168,14.71391073,135.27,135.23,7.39455286]
[1745261696783,14.71391073,135.27,135.23,22.10846359]
[1745261696982,22.10669973,135.27,135.23,22.10846359]
[1745261697186,22.10669973,135.27,135.23,7.39455286]
[1745261697486,14.71391073,135.27,135.23,7.39455286]
[1745261697782,14.71391073,135.27,135.23,22.10846359]
[1745261701585,22.10663685,135.27,135.22,103.8790304]
[1745261701878,14.71391073,135.23,135.2,7.39622763]
[1745261702083,14.71391073,135.22,135.19,89.22983266]
[1745261703277,22.10871957,135.23,135.19,89.22983266]
[1745261703901,14.71391073,135.23,135.19,89.22983266]
[1745261704378,14.71391073,135.23,135.19,103.94374339]
[1745261705405,14.71391073,135.23,135.19,89.22983266]
[1745261705568,14.71391073,135.23,135.19,103.94374339]
[1745261707488,42.10820865,135.24,135.19,103.94374339]
[1745261707694,42.10820865,135.24,135.19,89.22983266]
[1745261708009,42.10820865,135.24,135.19,103.94374339]
[1745261708391,14.71391073,135.23,135.19,103.94374339]
[1745261708995,14.71391073,135.23,135.19,89.22983266]
[1745261709299,22.10872441,135.23,135.19,89.22983266]
[1745261709599,14.71391073,135.23,135.19,89.22983266]
[1745261709791,14.71391073,135.23,135.19,103.94374339]
[1745261713208,34.71391073,135.24,135.19,103.94374339]
[1745261713508,14.71391073,135.2,135.19,81.833]
[1745261713703,34.71391073,135.2,135.19,0.063]
[1745261714906,34.8560723,135.2,135.19,0.063]
[1745261715281,60.90217086,135.2,135.19,0.063]
[1745261719706,42.252522,135.2,135.19,0.063]
[1745261720018,20.0,135.2,135.19,0.063]
[1745261720612,34.71391073,135.2,135.19,0.063]
[1745261720913,20.0,135.2,135.19,0.063]
[1745261721411,14.71391073,135.21,135.19,0.063]
[1745261721620,20.0,135.22,135.19,14.77691073]
[1745261721784,26.0,135.23,135.19,14.77691073]
[1745261721785,43.45453032,135.24,135.19,22.17366035]
[1745261721979,36.06,135.24,135.19,7.45974962]
[1745261722184,34.71391073,135.24,135.2,14.71391073]
[1745261722810,20.0,135.24,135.19,22.17366035]
[1745261723014,34.71391073,135.24,135.19,22.17366035]
[1745261723707,34.71391073,135.24,135.19,103.94366035]
[1745261723924,34.71391073,135.24,135.2,14.71391073]
[1745261725511,14.71391073,135.23,135.19,89.22974962]
[1745261725715,14.71391073,135.23,135.19,103.94366035]
[1745261726022,42.10820055,135.24,135.19,103.94366035]
[1745261726512,14.71391073,135.23,135.19,89.22974962]
[1745261727032,20.0,135.24,135.19,103.94366035]
[1745261727206,20.0,135.24,135.2,14.71391073]
[1745261727732,27.39330538,135.26,135.21,14.71391073]
[1745261728030,68.10721611,135.26,135.21,14.71391073]
[1745261729039,22.10769291,135.25,135.21,14.71391073]
[1745261729204,22.10769291,135.25,135.21,22.1097181]
[1745261729740,46.0,135.26,135.22,14.71391073]
[1745261730032,26.0,135.26,135.23,14.71391073]
[1745261730328,26.0,135.26,135.22,14.71391073]
[1745261730730,14.71391073,135.27,135.23,14.71391073]
[1745261730905,43.45234771,135.28,135.24,14.71391073]
[1745261730906,62.06,135.28,135.24,14.71391073]
[1745261731731,0.03,135.29,135.26,14.71391073]
[1745261731918,0.03,135.29,135.25,14.71391073]
[1745261732119,14.71391073,135.28,135.21,115.53366404]
[1745261732334,34.71391073,135.27,135.22,14.71391073]
[1745261732645,14.71391073,135.26,135.21,90.67200737]
[1745261732819,14.71391073,135.26,135.21,105.3859181]
[1745261733010,22.10707944,135.26,135.21,90.67200737]
[1745261733206,14.71391073,135.25,135.21,89.16580737]
[1745261733412,14.71391073,135.24,135.21,81.77]
[1745261734108,14.71391073,135.23,135.21,81.77]
[1745261734713,14.71391073,135.24,135.21,81.77]
[1745261735431,14.71391073,135.24,135.2,22.11021395]
[1745261735741,20.0,135.25,135.21,14.71391073]
[1745261736101,34.71391073,135.25,135.21,14.71391073]
[1745261736406,34.71391073,135.25,135.2,22.11021395]
[1745261736407,42.10777732,135.25,135.2,22.11021395]
[1745261737131,27.39386659,135.25,135.2,22.11021395]
[1745261737335,42.10777732,135.25,135.2,22.11021395]
[1745261738233,34.71391073,135.25,135.2,22.11021395]
[1745261739208,42.10774462,135.25,135.2,22.11021395]
[1745261739407,34.71391073,135.25,135.2,22.11021395]
[1745261739904,20.0,135.25,135.21,14.71391073]
[1745261740331,36.06,135.27,135.23,14.71391073]
[1745261740531,36.06,135.27,135.24,14.71391073]
[1745261740710,20.0,135.27,135.24,14.71391073]
[1745261741131,60.74391073,135.29,135.24,14.71391073]
[1745261741325,20.03,135.29,135.25,14.71391073]
[1745261741826,20.03,135.29,135.26,7.39316871]
[1745261743038,34.74391073,135.29,135.26,7.39316871]
[1745261743342,20.03,135.29,135.26,7.39316871]
[1745261743932,0.03,135.29,135.26,22.10707944]
[1745261745936,0.03,135.29,135.27,14.71391073]
[1745261746940,0.03,135.29,135.26,22.10707944]
[1745261747317,0.03,135.29,135.27,14.71391073]
[1745261747935,0.03,135.29,135.27,22.10601069]
[1745261748925,0.03,135.29,135.27,14.71391073]
[1745261750839,0.03,135.29,135.28,14.71391073]
[1745261751048,0.03,135.29,135.28,98.07211073]
[1745261751261,0.03,135.29,135.28,96.48391073]
[1745261751731,0.03,135.29,135.28,81.77]
[1745261754127,0.03,135.29,135.28,96.48391073]
[1745261755837,0.03,135.29,135.28,81.77]
[1745261775649,0.03,135.29,135.28,89.16207569]
[1745261775861,0.03,135.29,135.28,103.87598642]
[1745261776361,0.03,135.29,135.28,81.77]
[1745261779344,0.03,135.29,135.28,103.87598642]
[1745261783143,1e-08,135.3,135.28,137.77148642]
[1745261783460,0.03,135.33,135.31,26.0]
[1745261783647,0.03,135.33,135.32,14.71391073]
[1745261783847,0.03,135.33,135.32,22.10380135]
[1745261784659,1e-08,135.33,135.32,103.87380135]
[1745261786746,1e-08,135.33,135.32,89.15989062]
[1745261787175,1e-08,135.33,135.32,103.87380135]
[1745261787364,1e-08,135.33,135.32,89.15989062]
[1745261787563,1e-08,135.33,135.32,103.87380135]
[1745261788177,1e-08,135.33,135.32,81.77]
[1745261789082,1e-08,135.33,135.32,89.15989062]
[1745261794182,1e-08,135.33,135.32,103.87380135]
[1745261799081,1e-08,135.33,135.32,150.28371178]
[1745261799385,0.03,135.35,135.33,33.36355959]
[1745261799573,0.03,135.35,135.34,14.71391073]
[1745261799759,0.03,135.35,135.34,96.48391073]
[1745261800078,0.03,135.39,135.34,96.48391073]
[1745261800382,0.03,135.39,135.38,14.71391073]
[1745261800989,0.03,135.39,135.38,22.10052618]
[1745261804984,0.03,135.39,135.38,103.87052618]
[1745261805993,0.03,135.41,135.4,26.0]
[1745261806194,0.03,135.41,135.4,48.0994351]
[1745261809681,0.03,135.41,135.4,129.8694351]
[1745261815811,0.03,135.41,135.4,103.8694351]
[1745261816485,0.03,135.41,135.4,89.15552437]
[1745261817889,0.03,135.41,135.4,103.8694351]
[1745261821101,0.03,135.43,135.42,26.0]
[1745261821406,0.03,135.43,135.42,122.48391073]
[1745261821911,0.03,135.43,135.42,129.86834434]
[1745261822331,0.03,135.43,135.42,103.86834434]
[1745261829240,0.03,135.43,135.42,89.15443361]
[1745261831146,0.03,135.43,135.42,81.77]
[1745261831425,14.74391073,135.43,135.39,7.38606987]
[1745261831632,14.71391073,135.42,135.39,7.38606987]
[1745261831819,34.71391073,135.42,135.38,89.15634713]
[1745261832351,14.71391073,135.4,135.38,81.77]
[1745261832521,14.71391073,135.39,135.35,7.38812388]
[1745261832723,14.71391073,135.38,135.35,7.38812388]
[1745261832922,14.71391073,135.39,135.35,7.38812388]
[1745261833436,42.90166506,135.4,135.36,22.90166506]
[1745261833749,20.0,135.4,135.36,22.90166506]
[1745261834320,20.0,135.4,135.37,7.38716111]
[1745261835034,22.90166506,135.41,135.37,7.38716111]
[1745261835432,42.90166506,135.42,135.37,112.05882617]
[1745261838046,24.49346506,135.43,135.38,22.90166506]
[1745261838252,0.03,135.43,135.42,22.90166506]
[1745261838453,0.03,135.43,135.42,104.67166506]
[1745261839055,0.03,135.43,135.42,112.05609867]
[1745261845067,20.0,135.42,135.38,81.77]
[1745261845236,22.90166506,135.4,135.38,81.77]
[1745261845443,22.90166506,135.39,135.38,81.77]
[1745261845642,20.0,135.4,135.35,81.77]
[1745261845939,22.90166506,135.38,135.35,81.77]
[1745261846161,22.90166506,135.39,135.35,81.77]
[1745261846472,42.90166506,135.4,135.35,104.67166506]
[1745261847051,42.90166506,135.4,135.35,112.05985186]
[1745261848047,50.28722264,135.4,135.35,104.67166506]
[1745261848261,50.28722264,135.4,135.35,112.05985205]
[1745261851571,22.90166506,135.39,135.35,112.05985205]
[1745261851972,22.90166506,135.38,135.35,89.15818699]
[1745261853081,20.0,135.4,135.35,89.15818699]
[1745261853280,22.90166506,135.38,135.35,89.15818699]
[1745261853985,42.90166506,135.4,135.36,22.90166506]
[1745261854482,24.40506506,135.41,135.36,22.90166506]
[1745261854656,42.90166506,135.42,135.38,22.90166506]
[1745261854989,0.03,135.43,135.4,22.90166506]
[1745261855190,0.03,135.43,135.41,7.38497895]
[1745261856468,22.93166506,135.43,135.4,7.38525294]
[1745261856975,22.93166506,135.43,135.39,30.28752142]
[1745261858276,42.90166506,135.42,135.38,81.77]
[1745261858587,22.90166506,135.4,135.38,81.77]
[1745261858763,22.90166506,135.39,135.35,89.15809059]
[1745261858971,22.90166506,135.39,135.35,81.77]
[1745261859468,22.90166506,135.39,135.35,89.15819731]
[1745261859670,22.90166506,135.39,135.35,81.77]
[1745261859869,30.28776955,135.39,135.35,81.77]
[1745261860184,30.28776955,135.39,135.35,104.67166506]
[1745261861791,7.38610449,135.39,135.35,112.05987468]
[1745261862492,30.28776955,135.39,135.35,112.05987468]
[1745261863396,7.38610449,135.39,135.35,112.05987468]
[1745261864299,50.28744079,135.4,135.35,112.05987468]
[1745261865593,27.38577573,135.4,135.35,112.05987468]
[1745261865779,7.38464599,135.42,135.38,22.90166506]
[1745261866266,30.28631105,135.42,135.35,89.15820962]
[1745261866466,42.90166506,135.41,135.35,89.15820962]
[1745261866666,42.90166506,135.41,135.36,22.90166506]
[1745261867186,42.90166506,135.41,135.35,89.15820962]
[1745261867368,22.90166506,135.4,135.35,112.05987468]
[1745261867897,20.0,135.41,135.35,112.05987468]
[1745261868081,22.90166506,135.4,135.35,112.05987468]
[1745261868593,50.28671635,135.41,135.36,22.90166506]
[1745261869894,22.90166506,135.4,135.36,7.38764099]
[1745261870779,50.28671635,135.41,135.36,30.28930605]
[1745261871371,20.0,135.41,135.37,22.90166506]
[1745261872196,42.90166506,135.41,135.36,48.75857318]
[1745261873211,20.0,135.41,135.37,22.90166506]
[1745261873383,20.0,135.41,135.38,7.38661545]
[1745261873586,42.90166506,135.41,135.38,7.38661545]
[1745261874976,48.90166506,135.39,135.34,0.063]
[1745261875181,87.69347549,135.35,135.34,0.063]
[1745261875376,95.08172816,135.35,135.34,0.063]
[1745261875600,76.4320793,135.35,135.34,0.063]
[1745261876893,80.1256597,135.35,135.34,0.063]
[1745261877284,71.89808376,135.35,135.34,0.063]
[1745261878208,90.54773262,135.35,135.34,0.063]
[1745261878910,106.50773262,135.35,135.34,0.063]
[1745261879412,114.76663847,135.35,135.34,0.063]
[1745261882691,64.64964886,135.33,135.32,0.063]
[1745261882895,87.58264383,135.33,135.32,0.063]
[1745261883108,95.11414996,135.33,135.32,0.063]
[1745261884506,69.11414996,135.33,135.32,0.063]
[1745261885095,50.4645011,135.33,135.32,0.063]
[1745261885421,50.32233953,135.33,135.32,0.063]
[1745261888824,42.93299497,135.33,135.32,0.063]
[1745261889011,50.32233953,135.33,135.32,0.063]
[1745261889630,42.93299497,135.33,135.32,0.063]
[1745261890104,22.93299497,135.34,135.32,0.063]
[1745261890309,42.93299497,135.35,135.32,0.063]
[1745261892230,22.93299497,135.38,135.34,22.93299497]
[1745261892404,42.93299497,135.39,135.34,22.93299497]
[1745261892937,22.93299497,135.38,135.33,22.93299497]
[1745261893105,22.93299497,135.36,135.32,81.833]
[1745261893306,22.93299497,135.35,135.32,81.833]
[1745261893909,22.93299497,135.35,135.32,89.22286701]
[1745261894408,22.93299497,135.36,135.32,89.22286701]
[1745261895125,22.93299497,135.34,135.32,81.833]
[1745261896125,22.93299497,135.34,135.32,0.063]
[1745261896825,44.79181043,135.39,135.32,0.063]
[1745261896826,20.0,135.37,135.32,0.063]
[1745261897025,22.93299497,135.36,135.32,0.063]
[1745261897730,22.93299497,135.36,135.32,7.45281904]
[1745261899336,22.93299497,135.35,135.32,7.45281904]
[1745261901032,30.32077582,135.36,135.32,7.45281904]
[1745261901212,22.93299497,135.36,135.32,7.45281904]
[1745261902026,30.32072173,135.36,135.32,7.45281904]
[1745261902615,30.32072173,135.36,135.32,0.063]
[1745261902820,42.93299497,135.35,135.32,0.063]
[1745261903118,50.32126927,135.35,135.32,0.063]
[1745261903429,43.07515654,135.33,135.32,0.063]
[1745261903744,69.07515654,135.33,135.32,0.063]
[1745261903944,87.7248054,135.33,135.32,0.063]
[1745261905439,95.11414996,135.33,135.32,0.063]
[1745261915249,68.93299497,135.33,135.32,0.063]
[1745261917341,20.0,135.33,135.32,0.063]
[1745261918972,50.32233953,135.33,135.32,0.063]
[1745261920545,42.93299497,135.33,135.32,0.063]
[1745261921066,50.32233953,135.33,135.32,0.063]
[1745261923074,42.93299497,135.33,135.32,0.063]
[1745261923653,20.0,135.33,135.32,0.063]
[1745261926376,42.93299497,135.33,135.32,0.063]
[1745261926969,50.32233953,135.33,135.32,0.063]
[1745261929680,42.93299497,135.33,135.32,0.063]
[1745261929887,26.0,135.3,135.29,0.063]
[1745261930060,38.79181043,135.27,135.24,0.063]
[1745261930253,87.7248054,135.27,135.24,0.063]
[1745261930461,46.0,135.27,135.24,0.063]
[1745261930673,84.85299497,135.27,135.24,0.063]
[1745261931971,92.24561713,135.27,135.24,0.063]
[1745261932965,111.03742756,135.27,135.24,0.063]
[1745261937867,85.03742756,135.27,135.24,0.063]
[1745261938495,90.8739905,135.27,135.24,0.063]
[1745261938699,85.03742756,135.27,135.24,0.063]
[1745261940973,90.95148974,135.27,135.24,0.063]
[1745261941384,85.03742756,135.27,135.24,0.063]
[1745261942694,64.79181043,135.25,135.24,0.063]
[1745261942995,87.7248054,135.25,135.24,0.063]
[1745261943585,95.11852074,135.25,135.24,0.063]
[1745261945105,118.05151571,135.25,135.24,0.063]
[1745261947310,145.68861932,135.25,135.24,0.063]
[1745261947921,126.89680889,135.25,135.24,0.063]
[1745261948087,142.83680889,135.25,135.24,0.063]
[1745261949915,161.62861932,135.25,135.24,0.063]
[1745261951292,20.0,135.23,135.22,0.063]
[1745261951496,18.64964886,135.18,135.17,0.063]
[1745261951712,20.0,135.15,135.13,1.592]
[1745261951896,34.70061871,135.15,135.13,0.063]
[1745261952505,38.42131441,135.15,135.13,0.063]
[1745261953430,45.82050049,135.15,135.13,0.063]
[1745261953615,54.11953764,135.15,135.13,0.063]
[1745261959519,42.99965586,135.15,135.13,0.063]
[1745261962116,50.39884194,135.15,135.13,0.063]
[1745261963247,42.99965586,135.15,135.13,0.063]
[1745261965340,18.48438587,135.25,135.15,81.77]
[1745261965519,20.0,135.23,135.17,22.99965586]
[1745261965719,22.99965586,135.21,135.16,22.99965586]
[1745261966021,22.99965586,135.19,135.16,81.77]
[1745261966633,22.99965586,135.19,135.17,7.39809129]
[1745261967129,22.99965586,135.19,135.16,81.77]
[1745261967130,22.99965586,135.18,135.16,81.77]
[1745261967343,22.99965586,135.18,135.16,89.16858146]
[1745261967537,42.99965586,135.19,135.16,89.16858146]
[1745261967740,22.99965586,135.18,135.16,89.16858146]
[1745261970545,42.99965586,135.19,135.16,89.16858146]
[1745261973546,20.0,135.23,135.16,107.66517808]
[1745261973721,20.0,135.23,135.18,7.39754401]
[1745261973923,22.99965586,135.22,135.18,7.39754401]
[1745261974140,22.99965586,135.21,135.18,7.39754401]
[1745261975538,14.69816437,135.21,135.17,40.59040726]
[1745261976618,14.69816437,135.2,135.17,25.89224289]
[1745261976846,14.69816437,135.2,135.17,107.66224289]
[1745261977045,14.69816437,135.21,135.17,107.66224289]
[1745261977959,14.69816437,135.22,135.17,122.36040726]
[1745261979555,14.69816437,135.22,135.18,14.69816437]
[1745261979960,20.0,135.21,135.17,122.36040726]
[1745261980149,34.69816437,135.21,135.17,122.36040726]
[1745261980850,34.69816437,135.21,135.17,107.66224289]
[1745261981056,34.69816437,135.21,135.17,122.36040726]
[1745261982346,34.69816437,135.21,135.17,107.66224289]
[1745261982856,34.69816437,135.21,135.17,122.36040726]
[1745261983361,34.69816437,135.21,135.17,107.66224289]
[1745261983550,34.69816437,135.21,135.17,122.36040726]
[1745261984461,34.69816437,135.21,135.17,89.16809129]
[1745261984462,46.0,135.21,135.17,89.16809129]
[1745261984762,20.0,135.17,135.14,0.063]
[1745261984937,34.69816437,135.15,135.14,0.063]
[1745261985740,20.0,135.15,135.14,0.063]
[1745261986066,34.69816437,135.15,135.14,0.063]
[1745261986861,20.0,135.15,135.14,0.063]
[1745261987634,14.69816437,135.16,135.14,0.063]
[1745261988159,20.0,135.17,135.14,0.063]
[1745261988160,14.69816437,135.15,135.14,0.063]
[1745261988736,27.39816881,135.17,135.14,0.063]
[1745261989039,14.69816437,135.15,135.14,0.063]
[1745261989234,27.39816881,135.17,135.14,0.063]
[1745261989685,22.98793518,135.15,135.14,0.063]
[1745261992082,22.98793518,135.16,135.14,0.063]
[1745261992587,22.98793518,135.15,135.14,0.063]
[1745261994380,42.98793518,135.15,135.14,0.063]
[1745261994775,20.0,135.15,135.14,0.063]
[1745261994977,42.98793518,135.15,135.14,0.063]
[1745262000162,76.38712126,135.15,135.14,0.063]
[1745262002695,76.38712126,135.15,135.06,81.77]
[1745262002696,46.0,135.09,135.06,81.77]
[1745262002870,68.98793518,135.09,135.06,81.77]
[1745262003075,48.98793518,135.09,135.06,81.77]
[1745262003395,77.8959076,135.09,135.02,81.77]
[1745262003696,26.0407,135.03,135.01,0.03]
[1745262003868,40.08793518,135.02,135.01,0.03]
[1745262004200,43.72595862,135.02,135.01,0.03]
[1745262004496,20.73802344,135.02,135.01,0.03]
[1745262004717,3.63802344,135.02,135.01,0.03]
[1745262004907,7.54847174,135.02,135.01,0.03]
[1745262005086,26.0,135.02,135.01,0.03]
[1745262006000,20.0,135.03,135.01,0.03]
[1745262006209,20.0,135.07,135.01,6.1434]
[1745262006784,46.0,135.07,135.01,6.1434]
[1745262006981,46.0,135.07,135.01,0.03]
[1745262006982,22.98793518,135.03,135.01,0.03]
[1745262007186,22.98793518,135.02,135.01,0.03]
[1745262007401,20.0,135.03,135.01,0.03]
[1745262007605,22.98793518,135.02,135.01,0.03]
[1745262008201,20.0,135.03,135.01,0.03]
[1745262008426,22.98793518,135.02,135.01,0.03]
[1745262008808,20.0,135.03,135.01,0.03]
[1745262008977,42.98793518,135.03,135.01,0.03]
[1745262009487,20.0,135.03,135.01,0.03]
[1745262009701,22.98793518,135.02,135.01,0.03]
[1745262013612,20.0,135.07,135.01,104.78793518]
[1745262013815,20.0,135.07,135.05,22.98793518]
[1745262014025,20.0,135.1,135.06,22.98793518]
[1745262014189,20.0,135.1,135.07,22.98793518]
[1745262014512,20.0,135.1,135.03,22.98793518]
[1745262014513,20.0,135.12,135.09,22.98793518]
[1745262014684,20.0,135.14,135.09,22.98793518]
[1745262014889,43.5717723,135.17,135.11,6.4246]
[1745262014890,11.5607608,135.17,135.11,6.4246]
[1745262015084,11.5607608,135.17,135.12,18.64964886]
[1745262015514,48.3250631,135.17,135.14,7.3997336]
[1745262015933,36.7643023,135.16,135.11,6.4246]
[1745262016091,36.7643023,135.16,135.12,44.16512973]
[1745262016625,36.7643023,135.14,135.07,44.50802335]
[1745262016802,20.0,135.16,135.09,36.7643023]
[1745262017113,36.7643023,135.15,135.1,36.7643023]
[1745262017499,20.0,135.16,135.11,7.40137665]
[1745262017500,36.7643023,135.14,135.11,7.40137665]
[1745262018697,36.7643023,135.13,135.09,7.40247242]